[Event "HUN-chT 2017-18"]
[Site "Budapest"]
[Date "2018.05.06"]
[Round "9"]
[White "Balazs, Gabor"]
[Black "Kecskemeti, Arpad"]
[Result "1/2-1/2"]
[ECO "A48"]
[WhiteElo "2397"]
[BlackElo "2308"]
[Annotator "NA"]
[PlyCount "38"]
[EventDate "2018.??.??"]
[EventType "team-tourn"]
[EventCountry "HUN"]
[SourceTitle "playchess.com"]
[Source "ChessBase"]
[SourceQuality "1"]
[WhiteTeam "Hungary"]
[BlackTeam "Hungary"]
[WhiteTeamCountry "HUN"]
[BlackTeamCountry "HUN"]
[TimeControl "40/5400+30:1800+30"]

1. d4 {[%emt 0:00:04]} Nf6 {[%emt 0:00:37]} 2. Nf3 {[%emt 0:00:08]} g6 {[%emt 0:00:07]} 3. Bg5 {[%emt 0:00:14]} Bg7 {[%emt 0:00:20]} 4. Nbd2 {[%emt 0:00:15]} O-O {[%emt 0:02:18]} 5. e4 {[%emt 0:00:27]} d6 {[%emt 0:00:04]} 6. c3 {[%emt 0:00:24]} c5 {[%emt 0:04:50]} 7. dxc5 {[%emt 0:00:37]} dxc5 {[%emt 0:00:12]} 8. Bc4 {[%emt 0:00:18]} a6 {[%emt 0:03:53]} 9. a4 {[%emt 0:01:55]} Nc6 {[%emt 0:01:03]} 10. O-O {[%emt 0:01:47]} Qc7 {[%emt 0:05:05]} 11. Re1 {[%emt 0:04:50]} Rd8 {[%emt 0:03:56]} 12. Qc2 {[%emt 0:04:27]} Rb8 {[%emt 0:01:52]} 13. Bh4 {[%emt 0:05:16]} Nh5 {[%emt 0:07:07]} 14. Bf1 {[%emt 0:05:50]} b5 {[%emt 0:02:04]} 15. axb5 {[%emt 0:01:56]} axb5 {[%emt 0:00:06]} 16. Rad1 {[%emt 0:03:20]} c4 $15 {[%emt 0:15:43]} 17. Nb1 {[%emt 0:03:55]} Bg4 {[%emt 0:08:22]} 18. Rxd8+ {[%emt 0:07:34]} Rxd8 {[%emt 0:01:28]} 19. Bg3 {[%emt 0:02:03]} Nxg3 {[%emt 0:12:45]} 1/2-1/2

[Event "HUN-chT 2017-18"]
[Site "Budapest"]
[Date "2018.05.06"]
[Round "9"]
[White "Szalai, Kornel"]
[Black "Lazarne Vajda, Szidonia"]
[Result "1-0"]
[ECO "A02"]
[WhiteElo "2393"]
[BlackElo "2361"]
[Annotator "NA"]
[PlyCount "95"]
[EventDate "2018.??.??"]
[EventType "team-tourn"]
[EventCountry "HUN"]
[SourceTitle "playchess.com"]
[Source "ChessBase"]
[SourceQuality "1"]
[WhiteTeam "Hungary"]
[BlackTeam "Hungary"]
[WhiteTeamCountry "HUN"]
[BlackTeamCountry "HUN"]
[TimeControl "40/5400+30:1800+30"]

1. f4 {[%emt 0:01:40]} Nf6 {[%emt 0:01:34]} 2. Nf3 {[%emt 0:00:13]} g6 {[%emt 0:00:39]} 3. g3 {[%emt 0:02:27]} Bg7 {[%emt 0:00:22]} 4. Bg2 {[%emt 0:00:08]} d5 {[%emt 0:01:09]} 5. O-O {[%emt 0:02:38]} c5 {[%emt 0:03:20]} 6. d3 {[%emt 0:01:40]} Nc6 {[%emt 0:01:36]} 7. Qe1 {[%emt 0:16:59]} O-O {[%emt 0:03:15]} 8. c3 {[%emt 0:06:42]} b6 {[%emt 0:02:55]} 9. Na3 $15 {[%emt 0:07:46] LiveBook: 18 Games} Ba6 {[%emt 0:07:58]} 10. Rb1 {[%emt 0:02:43]} b5 {[%emt 0:09:26]} 11. Nc2 {[%emt 0:11:36]} b4 {[%emt 0:05:58]} 12. cxb4 {[%emt 0:07:34]} cxb4 {[%emt 0:00:18]} 13. Kh1 {[%emt 0:01:27]} Rb8 {[%emt 0:06:23]} 14. Ne5 {[%emt 0:02:57]} Nxe5 {[%emt 0:09:30]} 15. fxe5 {[%emt 0:00:05]} Ng4 {[%emt 0:00:07]} 16. Nxb4 {[%emt 0:01:43]} Bb7 {[%emt 0:00:31]} 17. d4 {[%emt 0:07:57]} h5 {[%emt 0:01:51]} 18. Bf4 {[%emt 0:07:03]} Rc8 {[%emt 0:06:18]} 19. Qd2 {[%emt 0:04:24]} Kh7 {[%emt 0:00:06]} 20. Nd3 {[%emt 0:01:00]} Qb6 {[%emt 0:02:00]} 21. e3 {[%emt 0:04:42]} f6 {[%emt 0:01:01]} 22. exf6 {[%emt 0:00:03]} exf6 {[%emt 0:00:05]} 23. h3 {[%emt 0:00:36]} Nh6 {[%emt 0:00:43]} 24. Bxh6 {[%emt 0:00:12]} Bxh6 {[%emt 0:00:06]} 25. Nf4 {[%emt 0:00:47]} Rce8 {[%emt 0:04:03]} 26. Rbc1 {[%emt 0:00:38]} Re7 {[%emt 0:01:34]} 27. Rc3 {[%emt 0:01:59]} Bxf4 {[%emt 0:03:07]} 28. gxf4 {[%emt 0:02:36]} Rfe8 {[%emt 0:03:57]} 29. a3 {[%emt 0:00:11]} Kh6 {[%emt 0:05:22]} 30. Qf2 {[%emt 0:00:26]} f5 {[%emt 0:02:20]} 31. Bf3 {[%emt 0:00:30]} Qf6 {[%emt 0:02:28]} 32. Rg1 {[%emt 0:00:11]} Re6 {[%emt 0:01:50]} 33. Re1 {[%emt 0:03:21]} Qe7 {[%emt 0:01:25]} 34. Qg2 {[%emt 0:00:04]} Qf6 {[%emt 0:05:02]} 35. Kh2 {[%emt 0:00:18]} Qd8 {[%emt 0:02:47]} 36. Rg1 {[%emt 0:00:46]} Rb6 {[%emt 0:02:44]} 37. Rb3 {[%emt 0:00:36]} Ree6 {[%emt 0:00:29]} 38. Rxb6 {[%emt 0:00:23]} Rxb6 {[%emt 0:00:26]} 39. Qg5+ {[%emt 0:00:53]} Qxg5 {[%emt 0:00:07]} 40. fxg5+ {[%emt 0:00:00]} Kg7 {[%emt 0:00:44]} 41. b4 {[%emt 0:01:10]} a5 {[%emt 0:08:09]} 42. bxa5 {[%emt 0:06:31]} Rb3 {[%emt 0:03:09]} 43. Rc1 {[%emt 0:00:17]} Kf8 {[%emt 0:01:45]} 44. Rc7 {[%emt 0:00:36]} Ke8 {[%emt 0:00:35]} 45. Kg3 {[%emt 0:00:24]} Ba6 {[%emt 0:01:18]} 46. Kf4 {[%emt 0:00:38]} Rxa3 {[%emt 0:00:21]} 47. Bxd5 {[%emt 0:00:11]} Rxa5 {[%emt 0:00:19]} 48. Bf7+ {[%emt 0:00:10]} 1-0

[Event "HUN-chT 2017-18"]
[Site "Budapest"]
[Date "2018.05.06"]
[Round "9"]
[White "Farago, Ivan"]
[Black "Borocz, Istvan"]
[Result "0-1"]
[ECO "E10"]
[WhiteElo "2373"]
[BlackElo "2365"]
[Annotator "NA"]
[PlyCount "82"]
[EventDate "2018.??.??"]
[EventType "team-tourn"]
[EventCountry "HUN"]
[SourceTitle "playchess.com"]
[Source "ChessBase"]
[SourceQuality "1"]
[WhiteTeam "Hungary"]
[BlackTeam "Hungary"]
[WhiteTeamCountry "HUN"]
[BlackTeamCountry "HUN"]
[TimeControl "40/5400+30:1800+30"]

1. d4 {[%emt 0:00:05]} Nf6 {[%emt 0:00:34]} 2. c4 {[%emt 0:00:18]} e6 {[%emt 0:00:04]} 3. Nf3 {[%emt 0:00:39]} c5 {[%emt 0:00:07]} 4. e3 {[%emt 0:01:38]} b6 {[%emt 0:07:16]} 5. Nc3 {[%emt 0:00:51]} Bb7 {[%emt 0:00:14]} 6. Bd3 {[%emt 0:00:47]} Be7 {[%emt 0:04:01]} 7. O-O {[%emt 0:00:17]} O-O {[%emt 0:05:43]} 8. d5 {[%emt 0:02:40]} exd5 {[%emt 0:04:15]} 9. cxd5 {[%emt 0:00:10]} d6 {[%emt 0:00:10]} 10. e4 {[%emt 0:01:08]} Nbd7 {[%emt 0:00:59]} 11. h3 {[%emt 0:04:42]} a6 {[%emt 0:02:46]} 12. a4 {[%emt 0:00:55]} Re8 $16 {[%emt 0:03:22]} 13. Re1 {[%emt 0:02:38]} Nf8 {[%emt 0:01:20]} 14. Bc4 {[%emt 0:28:27]} Ng6 {[%emt 0:08:04]} 15. e5 {[%emt 0:02:21]} Nxe5 {[%emt 0:23:50]} 16. Nxe5 {[%emt 0:00:19]} dxe5 {[%emt 0:01:54]} 17. Rxe5 {[%emt 0:00:16]} Bd6 {[%emt 0:02:07]} 18. Re2 {[%emt 0:03:30]} h6 {[%emt 0:05:01]} 19. Be3 {[%emt 0:04:18]} Bc7 {[%emt 0:02:12]} 20. Qf1 {[%emt 0:01:18]} Qd6 {[%emt 0:00:57]} 21. g3 {[%emt 0:00:14]} Qd7 {[%emt 0:00:49]} 22. Rd1 {[%emt 0:01:34]} Be5 {[%emt 0:01:28]} 23. Bb3 {[%emt 0:07:11]} Rac8 {[%emt 0:02:22]} 24. Kh2 {[%emt 0:03:30]} b5 {[%emt 0:07:29]} 25. axb5 {[%emt 0:09:19]} axb5 {[%emt 0:00:21]} 26. Qe1 {[%emt 0:00:33]} c4 {[%emt 0:01:43]} 27. Bc2 {[%emt 0:00:07]} Bxc3 {[%emt 0:05:11]} 28. bxc3 {[%emt 0:01:07]} Nxd5 {[%emt 0:01:07]} 29. f3 {[%emt 0:04:42]} Qe6 {[%emt 0:03:43]} 30. Be4 {[%emt 0:01:51]} f5 {[%emt 0:00:31]} 31. Bxd5 {[%emt 0:00:58]} Bxd5 {[%emt 0:00:04]} 32. Qf2 {[%emt 0:00:34]} b4 {[%emt 0:02:16]} 33. cxb4 {[%emt 0:00:11]} c3 {[%emt 0:01:11]} 34. Ree1 {[%emt 0:00:20]} Qc6 {[%emt 0:00:48]} 35. Rc1 {[%emt 0:05:31]} Bxf3 {[%emt 0:00:33]} 36. Bd4 {[%emt 0:00:31]} Rxe1 {[%emt 0:01:14]} 37. Qxe1 {[%emt 0:00:35]} Re8 {[%emt 0:01:16]} 38. Qxc3 {[%emt 0:03:10]} Re2+ {[%emt 0:00:22]} 39. Kg1 {[%emt 0:00:06]} Qe4 {[%emt 0:01:53]} 40. Rf1 {[%emt 0:00:00]} Rg2+ {[%emt 0:00:28]} 41. Kh1 {[%emt 0:09:33]} Rf2+ {[%emt 0:02:17]} 0-1

[Event "HUN-chT 2017-18"]
[Site "Budapest"]
[Date "2018.05.06"]
[Round "9"]
[White "Tompa, Janos"]
[Black "Fendrik, Lajos"]
[Result "1-0"]
[ECO "A05"]
[WhiteElo "2372"]
[BlackElo "2206"]
[Annotator "NA"]
[PlyCount "71"]
[EventDate "2018.??.??"]
[EventType "team-tourn"]
[EventCountry "HUN"]
[SourceTitle "playchess.com"]
[Source "ChessBase"]
[SourceQuality "1"]
[WhiteTeam "Hungary"]
[BlackTeam "Hungary"]
[WhiteTeamCountry "HUN"]
[BlackTeamCountry "HUN"]
[TimeControl "40/5400+30:1800+30"]

1. Nf3 {[%emt 0:00:36]} Nf6 {[%emt 0:01:07]} 2. g3 {[%emt 0:01:16]} d5 {[%emt 0:00:17]} 3. d3 {[%emt 0:00:54]} c5 {[%emt 0:01:53]} 4. Bg2 {[%emt 0:01:26]} Nc6 {[%emt 0:00:10]} 5. Nbd2 {[%emt 0:00:28]} e5 {[%emt 0:03:06]} 6. e4 {[%emt 0:01:43]} Be7 {[%emt 0:01:01]} 7. O-O {[%emt 0:00:17]} O-O {[%emt 0:00:28]} 8. Re1 {[%emt 0:02:28]} d4 {[%emt 0:01:03]} 9. Nc4 {[%emt 0:00:23]} Qc7 {[%emt 0:00:57] A08: King's Indian Attack} 10. a4 {[%emt 0:01:45]} Ne8 {[%emt 0:00:38]} 11. c3 {[%emt 0:10:22]} Bg4 $146 {[%emt 0:06:32]} ({Predecessor:} 11... Be6 12. Bd2 dxc3 13. Bxc3 f6 14. Ne3 Qd7 15. Nd5 Nc7 16. Nxe7+ Qxe7 17. Nh4 {½-½ (41) Haub,T (2310)-Maksimenko,A (2545) Schoeneck 1996}) 12. h3 {[%emt 0:02:19]} Be6 {[%emt 0:00:22]} 13. cxd4 {[%emt 0:01:18]} cxd4 {[%emt 0:01:12]} 14. Bd2 {[%emt 0:00:27]} f6 {[%emt 0:07:20]} 15. Rc1 {[%emt 0:00:54]} Qd7 {[%emt 0:00:09]} 16. Kh2 {[%emt 0:00:21]} Nb4 {[%emt 0:03:57]} 17. Bf1 {[%emt 0:05:40]} Na2 {[%emt 0:07:30]} 18. Ra1 {[%emt 0:00:29]} Bxc4 {[%emt 0:00:56]} 19. dxc4 {[%emt 0:00:24]} Nb4 {[%emt 0:00:31]} 20. a5 {[%emt 0:03:43]} Na6 {[%emt 0:11:38]} 21. Ra4 {[%emt 0:06:50]} Nc5 {[%emt 0:02:16]} 22. Ra1 $11 {[%emt 0:02:05]} Nd6 {[%emt 0:11:02]} 23. Qc2 {[%emt 0:29:55]} Ndxe4 {[%emt 0:04:13]} 24. Rxe4 {[%emt 0:00:08]} Qf5 {[%emt 0:01:25]} 25. Bb4 {[%emt 0:01:15]} Qxf3 {[%emt 0:05:29]} 26. Bg2 {[%emt 0:08:12]} Qb3 {[%emt 0:10:30]} 27. Qxb3 {[%emt 0:00:26]} Nxb3 {[%emt 0:00:12]} 28. Bxe7 {[%emt 0:00:06]} Nxa1 {[%emt 0:00:08]} 29. Bxf8 {[%emt 0:02:36]} Nb3 {[%emt 0:01:51]} 30. Bb4 {[%emt 0:00:34]} Rd8 {[%emt 0:05:23]} 31. Re1 b6 {[%emt 0:00:45]} 32. axb6 {[%emt 0:03:48]} axb6 {[%emt 0:01:54]} 33. f4 {[%emt 0:01:59]} exf4 {[%emt 0:01:18]} 34. Bd5+ {[%emt 0:00:58]} Kh8 {[%emt 0:00:12]} 35. gxf4 {[%emt 0:00:05]} g5 {[%emt 0:00:50]} 36. Be7 {[%emt 0:00:30]} 1-0

[Event "HUN-chT 2017-18"]
[Site "Budapest"]
[Date "2018.05.06"]
[Round "9"]
[White "Polyik, Peter"]
[Black "Csonka, Attila Istvan"]
[Result "1/2-1/2"]
[ECO "E15"]
[WhiteElo "2316"]
[BlackElo "2372"]
[Annotator "NA"]
[PlyCount "23"]
[EventDate "2018.??.??"]
[EventType "team-tourn"]
[EventCountry "HUN"]
[SourceTitle "playchess.com"]
[Source "ChessBase"]
[SourceQuality "1"]
[WhiteTeam "Hungary"]
[BlackTeam "Hungary"]
[WhiteTeamCountry "HUN"]
[BlackTeamCountry "HUN"]
[TimeControl "40/5400+30:1800+30"]

1. d4 {[%emt 0:00:04]} Nf6 {[%emt 0:00:38]} 2. c4 {[%emt 0:00:06]} e6 {[%emt 0:00:08]} 3. Nf3 {[%emt 0:00:05]} b6 {[%emt 0:00:11]} 4. g3 {[%emt 0:00:05]} Ba6 {[%emt 0:00:29]} 5. b3 {[%emt 0:00:13]} Bb4+ {[%emt 0:00:31]} 6. Bd2 {[%emt 0:00:06]} Be7 {[%emt 0:00:13]} 7. Bg2 {[%emt 0:00:05]} d5 {[%emt 0:00:10]} 8. cxd5 {[%emt 0:01:19]} exd5 {[%emt 0:00:06]} 9. O-O {[%emt 0:00:24]} O-O {[%emt 0:00:13]} 10. Bc1 {[%emt 0:01:40]} Nbd7 {[%emt 0:00:31]} 11. Bb2 {[%emt 0:00:06]} Ne4 {[%emt 0:03:37]} 12. Nc3 {[%emt 0:00:55]} 1/2-1/2

[Event "HUN-chT 2017-18"]
[Site "Budapest"]
[Date "2018.05.06"]
[Round "9"]
[White "Erdelyi, Zombor"]
[Black "Papp, Petra"]
[Result "1/2-1/2"]
[ECO "C42"]
[WhiteElo "2310"]
[BlackElo "2333"]
[Annotator "ChessBase"]
[PlyCount "125"]
[EventDate "2018.??.??"]
[EventType "team-tourn"]
[EventCountry "HUN"]
[SourceTitle "playchess.com"]
[Source "ChessBase"]
[SourceQuality "1"]
[WhiteTeam "Hungary"]
[BlackTeam "Hungary"]
[WhiteTeamCountry "HUN"]
[BlackTeamCountry "HUN"]
[TimeControl "40/5400+30:1800+30"]

1. e4 {[%emt 0:00:13]} e5 {[%emt 0:01:04]} 2. Nf3 {[%emt 0:00:09]} Nf6 {[%emt 0:00:07]} 3. Nxe5 {[%emt 0:01:33]} d6 {[%emt 0:00:22]} 4. Nf3 {[%emt 0:00:06]} Nxe4 {[%emt 0:00:37]} 5. Nc3 {[%emt 0:00:10]} Nxc3 {[%emt 0:00:25]} 6. dxc3 {[%emt 0:00:05]} Be7 {[%emt 0:00:28]} 7. Be3 {[%emt 0:00:07]} O-O {[%emt 0:01:06]} 8. Qd2 {[%emt 0:08:20]} Nd7 {[%emt 0:00:36]} 9. Be2 {[%emt 0:06:01]} Nf6 {[%emt 0:04:20]} 10. h3 {[%emt 0:04:05]} d5 {[%emt 0:02:31]} 11. O-O-O {[%emt 0:02:31]} c5 {[%emt 0:13:14]} 12. g4 {[%emt 0:02:02]} Qa5 {[%emt 0:02:15]} 13. a3 {[%emt 0:04:14]} Rd8 {[%emt 0:04:19]} 14. c4 {[%emt 0:02:00]} Qxd2+ {[%emt 0:02:37]} 15. Nxd2 {[%emt 0:00:58]} dxc4 {[%emt 0:09:08]} 16. Nxc4 {[%emt 0:08:19]} Be6 {[%emt 0:02:29]} 17. Na5 {[%emt 0:14:01]} Bd5 {[%emt 0:17:55]} 18. Rhe1 {[%emt 0:01:10]} b6 {[%emt 0:04:04]} 19. Nc4 {[%emt 0:00:18]} Bb7 {[%emt 0:03:17]} 20. Bg5 {[%emt 0:03:10]} h6 {[%emt 0:05:04]} 21. Bh4 {[%emt 0:01:13]} g5 {[%emt 0:10:03]} 22. Bg3 {[%emt 0:00:18]} Rxd1+ {[%emt 0:05:01]} 23. Rxd1 {[%emt 0:03:52]} Rd8 {[%emt 0:03:27]} 24. Rxd8+ {[%emt 0:03:23]} Bxd8 {[%emt 0:00:01]} 25. Nd6 {[%emt 0:00:16]} Bd5 {[%emt 0:02:56]} 26. Nf5 {[%emt 0:05:25]} Kh7 {[%emt 0:00:45]} 27. c4 {[%emt 0:05:18]} Be4 {[%emt 0:01:47]} 28. Nd6 {[%emt 0:00:28]} Bg6 {[%emt 0:01:05]} 29. h4 {[%emt 0:04:13]} h5 {[%emt 0:01:29]} 30. hxg5 {[%emt 0:04:52]} Nxg4 {[%emt 0:01:00]} 31. f4 {[%emt 0:00:45]} Kg7 {[%emt 0:01:37]} 32. Bh4 {[%emt 0:09:37]} Kf8 {[%emt 0:00:44]} 33. f5 {[%emt 0:00:18]} Be7 {[%emt 0:00:32]} 34. fxg6 {[%emt 0:04:48]} Bxd6 {[%emt 0:00:01]} 35. gxf7 {[%emt 0:00:12]} Kxf7 {[%emt 0:00:15]} 36. Bd3 {[%emt 0:00:47]} Bf4+ {[%emt 0:00:50]} 37. Kc2 {[%emt 0:01:25]} Ne5 {[%emt 0:00:07]} 38. Be4 {[%emt 0:01:17]} Ng6 {[%emt 0:00:30]} 39. Bd5+ {[%emt 0:00:02]} Ke7 {[%emt 0:00:58]} 40. Bf2 {[%emt 0:00:00]} Bxg5 {[%emt 0:00:42]} 41. Bg3 {[%emt 0:02:06]} Bf4 {[%emt 0:08:50]} 42. Be4 {[%emt 0:00:26]} Bxg3 {[%emt 0:00:26]} 43. Bxg6 {[%emt 0:00:02]} h4 {[%emt 0:00:05]} 44. Kd3 {[%emt 0:04:10]} Kf6 {[%emt 0:01:09]} 45. Be8 {[%emt 0:00:59]} h3 {[%emt 0:00:59]} 46. Ke2 {[%emt 0:03:56]} Ke5 {[%emt 0:03:51]} 47. Kf3 {[%emt 0:01:41]} h2 {[%emt 0:01:01]} 48. Kg2 {[%emt 0:00:01]} Kd4 {[%emt 0:00:45]} 49. a4 {[%emt 0:11:00]} Kxc4 {[%emt 0:10:33]} 50. Bf7+ {[%emt 0:00:15]} Kb4 {[%emt 0:00:09]} 51. b3 {[%emt 0:00:03]} Bc7 {[%emt 0:00:18]} 52. Bg8 {[%emt 0:00:22]} a6 {[%emt 0:04:41]} 53. Bf7 {[%emt 0:00:05]} Bd6 {[%emt 0:01:39]} 54. Bg8 {[%emt 0:00:05]} a5 {[%emt 0:00:25]} 55. Bf7 {[%emt 0:01:19]} b5 {[%emt 0:00:22]} 56. axb5 {[%emt 0:00:05]} Kxb5 {[%emt 0:00:13]} 57. Be6 {[%emt 0:00:27]} Kb4 {[%emt 0:00:12]} 58. Bf7 {[%emt 0:00:06]} c4 {[%emt 0:00:14]} 59. Bxc4 {[%emt 0:00:10]} a4 {[%emt 0:00:02]} 60. bxa4 {[%emt 0:00:07]} Kxc4 {[%emt 0:00:02]} 61. a5 {[%emt 0:00:14]} Kb5 {[%emt 0:00:03]} 62. a6 {[%emt 0:00:04]} Kxa6 {[%emt 0:00:02]} 63. Kh1 {[%emt 0:00:04]} 1/2-1/2

[Event "HUN-chT 2017-18"]
[Site "Budapest"]
[Date "2018.05.06"]
[Round "9"]
[White "Sanchez Repullo, Daniel"]
[Black "Borhy, Marcell"]
[Result "0-1"]
[ECO "D02"]
[WhiteElo "2266"]
[BlackElo "2226"]
[Annotator "NA"]
[PlyCount "118"]
[EventDate "2018.??.??"]
[EventType "team-tourn"]
[EventCountry "HUN"]
[SourceTitle "playchess.com"]
[Source "ChessBase"]
[SourceQuality "1"]
[WhiteTeam "Hungary"]
[BlackTeam "Hungary"]
[WhiteTeamCountry "HUN"]
[BlackTeamCountry "HUN"]
[TimeControl "40/5400+30:1800+30"]

1. d4 {[%emt 0:00:04]} d5 {[%emt 0:00:39]} 2. Nf3 {[%emt 0:00:14]} Nf6 {[%emt 0:00:20]} 3. Bf4 {[%emt 0:01:43]} c5 {[%emt 0:00:30]} 4. e3 {[%emt 0:06:56]} Nc6 {[%emt 0:01:42]} 5. c3 {[%emt 0:00:25]} Qb6 {[%emt 0:00:27]} 6. Qc1 {[%emt 0:07:05]} c4 {[%emt 0:01:35]} 7. Nbd2 {[%emt 0:01:46]} Bf5 {[%emt 0:00:24]} 8. Be2 {[%emt 0:03:25]} h6 {[%emt 0:01:03]} 9. O-O {[%emt 0:05:15]} e6 {[%emt 0:03:07]} 10. b3 {[%emt 0:01:52]} cxb3 {[%emt 0:00:48]} 11. axb3 {[%emt 0:00:02]} Be7 {[%emt 0:04:12]} 12. h3 {[%emt 0:00:44]} O-O {[%emt 0:00:57]} 13. Ra4 {[%emt 0:02:49]} Rfc8 {[%emt 0:05:42]} 14. Qa1 {[%emt 0:09:32]} Ne4 {[%emt 0:05:16]} 15. Nxe4 {[%emt 0:05:51]} Bxe4 {[%emt 0:00:19]} 16. Nd2 {[%emt 0:00:04]} Bg6 {[%emt 0:00:32]} 17. Re1 {[%emt 0:01:55]} Qd8 {[%emt 0:03:16]} 18. Bf3 {[%emt 0:05:59]} f5 {[%emt 0:08:50]} 19. b4 {[%emt 0:06:21]} a5 {[%emt 0:09:21]} 20. b5 {[%emt 0:04:51]} Na7 {[%emt 0:01:15]} 21. Rb1 {[%emt 0:02:46]} Be8 {[%emt 0:11:23]} 22. Be2 {[%emt 0:00:05]} b6 {[%emt 0:03:27]} 23. Nf3 {[%emt 0:00:07]} Bd6 {[%emt 0:01:27]} 24. Ne5 {[%emt 0:05:13]} g5 {[%emt 0:08:31]} 25. Bh2 {[%emt 0:02:15]} Rc7 {[%emt 0:04:59]} 26. c4 {[%emt 0:04:27]} Nc8 {[%emt 0:00:22]} 27. cxd5 {[%emt 0:08:11]} exd5 {[%emt 0:00:08]} 28. Bf3 {[%emt 0:00:05]} Ne7 {[%emt 0:00:15]} 29. Qa2 {[%emt 0:01:31]} Bxe5 {[%emt 0:00:12]} 30. Bxe5 {[%emt 0:00:15]} Rc3 {[%emt 0:00:09]} 31. Bf6 {[%emt 0:01:24]} Bf7 {[%emt 0:00:40]} 32. Bxe7 {[%emt 0:00:21]} Qxe7 {[%emt 0:00:02]} 33. Bxd5 {[%emt 0:00:06]} Rac8 {[%emt 0:00:26]} 34. Bxf7+ {[%emt 0:05:21]} Qxf7 {[%emt 0:00:03]} 35. Qxf7+ {[%emt 0:00:28]} Kxf7 {[%emt 0:00:02]} 36. Ra2 {[%emt 0:00:05]} Rc2 {[%emt 0:00:39]} 37. Rbb2 {[%emt 0:01:00]} Rxb2 {[%emt 0:00:19]} 38. Rxb2 {[%emt 0:00:01]} Rc1+ {[%emt 0:00:21]} 39. Kh2 {[%emt 0:00:04]} Ke6 {[%emt 0:00:17]} 40. g4 {[%emt 0:00:00]} f4 {[%emt 0:01:13]} 41. e4 {[%emt 0:01:00]} Rc4 {[%emt 0:01:46]} 42. Rd2 {[%emt 0:00:45]} Kd6 {[%emt 0:02:14]} 43. h4 {[%emt 0:21:08]} a4 {[%emt 0:05:00]} 44. Rd3 {[%emt 0:04:29]} Rb4 {[%emt 0:02:34]} 45. hxg5 {[%emt 0:03:44]} hxg5 {[%emt 0:00:17]} 46. Kg2 {[%emt 0:00:46]} Rb3 {[%emt 0:04:02]} 47. Rd1 {[%emt 0:00:09]} Rxb5 {[%emt 0:00:25]} 48. d5 {[%emt 0:04:16]} Ra5 {[%emt 0:03:44]} 49. e5+ {[%emt 0:05:24]} Kxe5 {[%emt 0:00:48]} 50. d6 {[%emt 0:00:16]} Ra8 {[%emt 0:00:14]} 51. d7 {[%emt 0:00:35]} Rd8 {[%emt 0:00:06]} 52. Ra1 {[%emt 0:01:15]} Rxd7 {[%emt 0:00:28]} 53. Rxa4 {[%emt 0:00:01]} Rd4 {[%emt 0:01:27]} 54. Ra8 {[%emt 0:00:22]} Rd5 {[%emt 0:00:14]} 55. Kf3 {[%emt 0:00:43]} b5 {[%emt 0:00:31]} 56. Rb8 {[%emt 0:00:15]} Kd4 {[%emt 0:00:17]} 57. Rb7 {[%emt 0:01:03]} Re5 {[%emt 0:00:08]} 58. Rd7+ {[%emt 0:01:22]} Kc3 {[%emt 0:00:22]} 59. Rc7+ {[%emt 0:00:05]} Kb3 {[%emt 0:00:09]} 0-1

[Event "HUN-chT 2017-18"]
[Site "Budapest"]
[Date "2018.05.06"]
[Round "9"]
[White "Pergel, Laszlo"]
[Black "Turzo, Attila"]
[Result "0-1"]
[ECO "B27"]
[WhiteElo "2263"]
[BlackElo "2284"]
[Annotator "ChessBase"]
[PlyCount "111"]
[EventDate "2018.??.??"]
[EventType "team-tourn"]
[EventCountry "HUN"]
[SourceTitle "playchess.com"]
[Source "ChessBase"]
[SourceQuality "1"]
[WhiteTeam "Hungary"]
[BlackTeam "Hungary"]
[WhiteTeamCountry "HUN"]
[BlackTeamCountry "HUN"]
[TimeControl "40/5400+30:1800+30"]

1. e4 {[%emt 0:00:04]} c5 {[%emt 0:01:38]} 2. Nf3 {[%emt 0:00:04]} g6 {[%emt 0:00:13]} 3. Bc4 {[%emt 0:00:34]} Bg7 {[%emt 0:01:29]} 4. c3 {[%emt 0:00:08]} e6 {[%emt 0:00:17]} 5. d3 {[%emt 0:00:36]} d5 {[%emt 0:00:20]} 6. Bb3 {[%emt 0:02:05]} Nc6 {[%emt 0:04:21]} 7. O-O {[%emt 0:06:43]} Nge7 {[%emt 0:04:13]} 8. Re1 {[%emt 0:03:27]} O-O {[%emt 0:04:38]} 9. Nbd2 {[%emt 0:00:29]} e5 {[%emt 0:06:25]} 10. Nf1 {[%emt 0:18:54]} h6 {[%emt 0:01:51]} 11. Ne3 {[%emt 0:09:57]} Be6 {[%emt 0:02:10]} 12. exd5 {[%emt 0:02:41]} Nxd5 {[%emt 0:03:15]} 13. Nc4 {[%emt 0:00:13]} Qc7 {[%emt 0:08:51]} 14. Qe2 {[%emt 0:00:13]} Rfe8 {[%emt 0:09:35]} 15. Ba4 {[%emt 0:19:24]} f6 {[%emt 0:09:52]} 16. Qc2 {[%emt 0:11:52]} Rad8 {[%emt 0:12:29]} 17. Be3 {[%emt 0:08:41]} a6 {[%emt 0:05:08]} 18. Ncd2 {[%emt 0:02:51]} b6 {[%emt 0:04:23]} 19. a3 {[%emt 0:01:17]} f5 {[%emt 0:00:44]} 20. Bxc6 {[%emt 0:00:41]} Qxc6 {[%emt 0:00:13]} 21. Nc4 {[%emt 0:00:18]} Nxe3 {[%emt 0:04:47]} 22. Nxe3 {[%emt 0:01:33]} b5 {[%emt 0:01:51]} 23. a4 {[%emt 0:01:53]} f4 {[%emt 0:02:16]} 24. Nf1 {[%emt 0:00:49]} Bf5 {[%emt 0:00:03]} 25. axb5 {[%emt 0:01:48]} Qxb5 {[%emt 0:04:27]} 26. c4 {[%emt 0:00:46]} Qd7 {[%emt 0:01:15]} 27. Qa4 {[%emt 0:04:42]} Qxa4 {[%emt 0:02:55]} 28. Rxa4 {[%emt 0:00:01]} Bxd3 {[%emt 0:00:25]} 29. Rxa6 {[%emt 0:00:11]} e4 {[%emt 0:01:11]} 30. Nh4 {[%emt 0:00:53]} e3 {[%emt 0:00:24]} 31. fxe3 {[%emt 0:00:53]} fxe3 {[%emt 0:00:12]} 32. Nf3 {[%emt 0:00:46]} Bd4 {[%emt 0:01:44]} 33. Nxd4 {[%emt 0:00:18]} cxd4 {[%emt 0:00:01]} 34. Ng3 {[%emt 0:00:28]} Bc2 {[%emt 0:01:20]} 35. Nf1 {[%emt 0:00:43]} d3 {[%emt 0:02:01]} 36. Rxe3 {[%emt 0:00:05]} Rxe3 {[%emt 0:00:07]} 37. Nxe3 {[%emt 0:00:01]} d2 {[%emt 0:00:06]} 38. Kf2 {[%emt 0:00:47]} d1=Q {[%emt 0:00:52]} 39. Nxd1 {[%emt 0:00:02]} Rxd1 {[%emt 0:00:07]} 40. c5 {[%emt 0:00:00]} Kf7 {[%emt 0:01:40]} 41. c6 {[%emt 0:10:13]} Bf5 {[%emt 0:13:18]} 42. b4 {[%emt 0:07:39]} Rb1 43. Rb6 {[%emt 0:00:48]} Rb2+ {[%emt 0:07:13]} 44. Kf3 {[%emt 0:03:54]} Rb3+ {[%emt 0:02:58]} 45. Kf2 {[%emt 0:05:13]} Ke7 {[%emt 0:01:42]} 46. b5 {[%emt 0:02:59]} Kd6 {[%emt 0:00:34]} 47. Rb8 {[%emt 0:00:27]} h5 {[%emt 0:02:59]} 48. h3 {[%emt 0:00:23]} Be6 {[%emt 0:01:14]} 49. Rd8+ {[%emt 0:03:37]} Kc7 {[%emt 0:00:45]} 50. Re8 {[%emt 0:00:15]} Rb2+ {[%emt 0:03:23]} 51. Ke3 {[%emt 0:00:17]} Bf5 {[%emt 0:01:00]} 52. Re7+ {[%emt 0:01:18]} Kd6 {[%emt 0:00:01]} 53. Rb7 {[%emt 0:00:06]} Rxg2 {[%emt 0:00:19]} 54. c7 {[%emt 0:00:22]} Bc8 {[%emt 0:01:02]} 55. Ra7 {[%emt 0:00:01]} Rb2 {[%emt 0:00:20]} 56. Kf4 0-1